fUST/lending_fUST_20240612
["ID","MTS","AMOUNT","RATE_DAILY","PERIOD"]
[329201873,1718175046809,-500.0,0.00016438,2]
[329201874,1718175046819,-500.0,0.00016438,2]
[329201875,1718175046830,-500.0,0.00016438,2]
[329201876,1718175046841,-500.0,0.00016438,2]
[329201877,1718175046851,-426.54230119,0.00016438,2]
[329201878,1718175046862,-500.0,0.00016438,2]
[329201879,1718175046872,-500.0,0.00016438,2]
[329201880,1718175046883,-500.0,0.00016438,2]
[329201881,1718175046908,-322.04156391,0.00016438,2]
[329201884,1718175046918,-503.59768553,0.00016438,2]
[329201885,1718175047085,-500.0,0.00016438,2]
[329201887,1718175047096,-500.0,0.00016438,2]
[329201888,1718175047106,-541.28601631,0.00016438,2]
[329201890,1718175047117,-500.0,0.00016438,2]
[329201891,1718175047127,-500.0,0.00016438,2]
[329201892,1718175047137,-1804.69,0.00016438,2]
[329201893,1718175047148,-500.0,0.00016438,2]
[329201894,1718175047158,-500.0,0.00016438,2]
[329201895,1718175047169,-509.03803447,0.00016438,2]
[329201896,1718175047179,-219.78736736,0.00016438,2]
[329201897,1718175047192,-500.0,0.00016438,2]
[329201898,1718175047202,-432.45194256,0.00016438,2]
[329201899,1718175047212,-500.0,0.00016438,2]
[329201900,1718175047222,-512.40716329,0.00016438,2]
[329201901,1718175047232,-500.0,0.00016438,2]
[329201902,1718175047243,-501.02092364,0.00016438,2]
[329201903,1718175047258,-500.0,0.00016438,2]
[329201904,1718175047268,-502.24697794,0.00016438,2]
[329201905,1718175047278,-500.0,0.00016438,2]
[329201906,1718175047290,-613.72409257,0.00016438,2]
[329201907,1718175047301,-432.0971897,0.00016438,2]
[329201908,1718175047311,-537.0375733,0.00016438,2]
[329201909,1718175047324,-500.0,0.00016438,4]
[329201910,1718175047337,-500.0,0.00016438,2]
[329201911,1718175047348,-500.0,0.00016438,2]
[329201912,1718175047358,-491.36308645,0.00016438,2]
[329201913,1718175047370,-500.0,0.00016438,2]
[329201914,1718175047380,-500.0,0.00016438,2]
[329201915,1718175047390,-501.08716717,0.00016438,2]
[329201916,1718175047401,-183.79379664,0.00016438,2]
[329201917,1718175047411,-500.0,0.00016438,2]
[329201918,1718175047421,-505.79444727,0.00016438,2]
[329201919,1718175047432,-502.68043406,0.00016438,2]
[329201920,1718175047442,-508.73609276,0.00016438,2]
[329201921,1718175047452,-500.0,0.00016438,2]
[329201922,1718175047463,-500.0,0.00016438,2]
[329201923,1718175047473,-500.0,0.00016438,2]
[329201924,1718175047483,-544.82398022,0.00016438,2]
[329201925,1718175047493,-500.0,0.00016438,2]
[329201926,1718175047503,-500.0,0.00016438,2]
[329201927,1718175047515,-503.63490696,0.00016438,2]
[329201928,1718175047525,-501.22283651,0.00016438,2]
[329201929,1718175047535,-500.0,0.00016438,2]
[329201930,1718175047545,-500.0,0.00016438,2]
[329201931,1718175047555,-500.0,0.00016438,2]
[329201932,1718175047565,-500.0,0.00016438,2]
[329201933,1718175047575,-504.54131382,0.00016438,2]
[329201934,1718175047584,-500.0,0.00016438,2]
[329201935,1718175047594,-500.0,0.00016438,2]
[329201936,1718175047603,-500.85481312,0.00016438,2]
[329201937,1718175047613,-500.0,0.00016438,2]
[329201938,1718175047623,-500.0,0.00016438,2]
[329201939,1718175047632,-542.49802062,0.00016438,2]
[329201940,1718175047642,-500.0,0.00016438,2]
[329201941,1718175047652,-505.82994831,0.00016438,2]
[329201942,1718175047662,-455.01842761,0.00016438,2]
[329201943,1718175047672,-500.0,0.00016438,2]
[329201944,1718175047681,-500.0,0.00016438,2]
[329201945,1718175047691,-250.0,0.00016438,2]
[329201946,1718175047701,-500.0,0.00016438,2]
[329201947,1718175047710,-500.0,0.00016438,2]
[329201948,1718175047720,-500.55091856,0.00016438,2]
[329201949,1718175047731,-510.14701719,0.00016438,2]
[329201950,1718175047741,-500.0,0.00016438,2]
[329201951,1718175047750,-500.0,0.00016438,2]
[329201952,1718175047760,-500.0,0.00016438,2]
[329201953,1718175047769,-500.0,0.00016438,2]
[329201954,1718175047779,-500.0,0.00016438,2]
[329201955,1718175047789,-346.58053634,0.00016438,2]
[329201956,1718175047800,-500.0,0.00016438,2]
[329201957,1718175047810,-500.0,0.00016438,2]
[329201958,1718175047820,-500.0,0.00016438,2]
[329201959,1718175047829,-500.0,0.00016438,2]
[329201960,1718175047839,-500.0,0.00016438,2]
[329201961,1718175047848,-502.38592744,0.00016438,2]
[329201962,1718175047858,-510.85589307,0.00016438,2]
[329201963,1718175047870,-500.0,0.00016438,2]
[329201964,1718175047882,-500.0,0.00016438,2]
[329201965,1718175047899,-500.0,0.00016438,2]
[329201966,1718175047911,-500.0,0.00016438,2]
[329201967,1718175047921,-500.0,0.00016438,2]
[329201968,1718175047931,-500.0,0.00016438,2]
[329201969,1718175047941,-500.0,0.00016438,2]
[329201970,1718175047951,-247.54074553,0.00016438,2]
[329201971,1718175047961,-794.15,0.00016438,2]
[329201972,1718175047971,-502.66828748,0.00016438,2]
[329201973,1718175047981,-500.0,0.00016438,2]
[329201975,1718175047991,-502.82130143,0.00016438,2]
[329201976,1718175048000,-500.0,0.00016438,2]
[329201977,1718175048010,-500.0,0.00016438,2]
[329201978,1718175048020,-500.0,0.00016438,2]
[329201979,1718175048030,-503.50798478,0.00016438,2]
[329201980,1718175048040,-335.33580852,0.00016438,2]
[329201981,1718175048049,-500.0,0.00016438,2]
[329201982,1718175048059,-500.0,0.00016438,2]
[329201983,1718175048069,-500.0,0.00016438,2]
[329201984,1718175048079,-500.0,0.00016438,2]
[329201985,1718175048089,-500.0,0.00016438,2]
[329201986,1718175048099,-500.0,0.00016438,2]
[329201987,1718175048108,-503.47347521,0.00016438,2]
[329201988,1718175048119,-500.0,0.00016438,2]
[329201989,1718175048129,-500.0,0.00016438,2]
[329201990,1718175048139,-500.0,0.00016438,2]
[329201991,1718175048148,-502.91561604,0.00016438,2]
[329201992,1718175048158,-518.35004106,0.00016438,2]
[329201993,1718175048168,-500.0,0.00016438,2]
[329201994,1718175048178,-500.0,0.00016438,2]
[329201995,1718175048188,-500.0,0.00016438,2]
[329201996,1718175048198,-500.0,0.00016438,2]
[329201997,1718175048208,-500.0,0.00016438,2]
[329201998,1718175048218,-500.0,0.00016438,2]
[329201999,1718175048229,-500.0,0.00016438,2]
[329202000,1718175048240,-500.0,0.00016438,2]
[329202001,1718175048253,-502.57488504,0.00016438,2]
[329202002,1718175048263,-500.0,0.00016438,2]
[329202003,1718175048273,-502.94642832,0.00016438,2]
[329202004,1718175048283,-503.25826338,0.00016438,2]
[329202005,1718175048295,-500.0,0.00016438,2]
[329202006,1718175048306,-500.0,0.00016438,2]
[329202007,1718175048316,-500.0,0.00016438,2]
[329202008,1718175048326,-502.42748652,0.00016438,2]
[329202009,1718175048338,-502.34291741,0.00016438,2]
[329202010,1718175048349,-500.0,0.00016438,2]
[329202011,1718175048359,-504.26620568,0.00016438,2]
[329202012,1718175048371,-500.0,0.00016438,2]
[329202013,1718175048381,-271.86634984,0.00016438,2]
[329202014,1718175048390,-500.0,0.00016438,2]
[329202015,1718175048400,-575.45010021,0.00016438,2]
[329202016,1718175048410,-520.70465805,0.00016438,2]
[329202017,1718175048420,-500.0,0.00016438,2]
[329202018,1718175048432,-500.0,0.00016438,2]
[329202019,1718175048445,-339.12345505,0.00016438,2]
[329202020,1718175048455,-583.99663135,0.00016438,2]
[329202021,1718175048465,-627.44428766,0.00016438,2]
[329202022,1718175048476,-500.0,0.00016438,2]
[329202023,1718175048486,-500.0,0.00016438,2]
[329202024,1718175048496,-500.0,0.00016438,2]
[329202025,1718175048506,-500.0,0.00016438,2]
[329202026,1718175048516,-563.93340625,0.00016438,2]
[329202027,1718175048527,-500.0,0.00016438,2]
[329202028,1718175048537,-501.93232064,0.00016438,2]
[329202029,1718175048548,-500.0,0.00016438,2]
[329202030,1718175048558,-500.0,0.00016438,2]
[329202031,1718175048568,-500.0,0.00016438,2]
[329202032,1718175048578,-500.0,0.00016438,2]
[329202033,1718175048588,-504.29185432,0.00016438,2]
[329202034,1718175048597,-500.0,0.00016438,2]
[329202035,1718175048608,-500.0,0.00016438,2]
[329202036,1718175048619,-500.0,0.00016438,2]
[329202037,1718175048628,-501.25252318,0.00016438,2]
[329202038,1718175048638,-500.0,0.00016438,2]
[329202039,1718175048648,-500.0,0.00016438,2]
[329202040,1718175048658,-505.43272219,0.00016438,2]
[329202041,1718175048668,-502.44994939,0.00016438,2]
[329202042,1718175048677,-500.0,0.00016438,2]
[329202043,1718175048687,-551.07110592,0.00016438,2]
[329202044,1718175048698,-500.0,0.00016438,2]
[329202045,1718175048708,-500.0,0.00016438,2]
[329202046,1718175048718,-500.0,0.00016438,2]
[329202047,1718175048727,-1010.63,0.00016438,2]
[329202048,1718175048737,-522.27,0.00016438,2]
[329202049,1718175048746,-514.47980424,0.00016438,2]
[329202050,1718175048756,-500.0,0.00016438,2]
[329202051,1718175048765,-500.0,0.00016438,2]
[329202052,1718175048775,-500.0,0.00016438,2]
[329202053,1718175048784,-500.0,0.00016438,2]
[329202054,1718175048794,-506.55197469,0.00016438,2]
[329202055,1718175048804,-500.0,0.00016438,2]
[329202056,1718175048814,-500.0,0.00016438,2]
[329202057,1718175048825,-500.0,0.00016438,2]
[329202058,1718175048835,-500.0,0.00016438,2]
[329202059,1718175048844,-500.0,0.00016438,2]
[329202060,1718175048855,-2111.48,0.00016438,2]
[329202061,1718175048865,-500.0,0.00016438,2]
[329202062,1718175048875,-512.21988695,0.00016438,2]
[329202063,1718175048891,-500.0,0.00016438,2]
[329202064,1718175048905,-6297.57,0.00016438,2]
[329202065,1718175048915,-1308.57,0.00016438,2]
[329202066,1718175048926,-500.0,0.00016438,2]
[329202067,1718175048936,-500.0,0.00016438,2]
[329202068,1718175048946,-586.59021991,0.00016438,2]
[329202069,1718175048956,-1067.37,0.00016438,2]
[329202070,1718175048966,-500.0,0.00016438,2]
[329202071,1718175048976,-500.0,0.00016438,2]
[329202072,1718175048986,-502.4076108,0.00016438,2]
[329202073,1718175048996,-436.86099955,0.00016438,2]
[329202074,1718175049006,-500.0,0.00016438,2]
[329202075,1718175049016,-500.0,0.00016438,2]
[329202076,1718175049026,-509.26123511,0.00016438,2]
[329202077,1718175049036,-500.0,0.00016438,2]
[329202078,1718175049047,-504.52496078,0.00016438,2]
[329202079,1718175049057,-500.0,0.00016438,2]
[329202080,1718175049068,-500.0,0.00016438,2]
[329202081,1718175049080,-500.0,0.00016438,2]
[329202082,1718175049090,-5181.01,0.00016438,2]
[329202083,1718175049100,-500.0,0.00016438,2]
[329202084,1718175049114,-500.0,0.00016438,2]
[329202085,1718175049126,-500.0,0.00016438,2]
[329202086,1718175049136,-500.0,0.00016438,2]
[329202087,1718175049152,-505.72840727,0.00016438,2]
[329202088,1718175049164,-501.02754867,0.00016438,2]
[329202089,1718175049175,-500.0,0.00016438,2]
[329202090,1718175049185,-500.0,0.00016438,2]
[329202091,1718175049195,-500.0,0.00016438,2]
[329202092,1718175049206,-500.0,0.00016438,2]
[329202093,1718175049217,-3909.51,0.00016438,2]
[329202094,1718175049227,-500.0,0.00016438,2]
[329202095,1718175049237,-500.0,0.00016438,2]
[329202096,1718175049249,-500.0,0.00016438,2]
[329202097,1718175049261,-241.28827611,0.00016438,2]
[329202098,1718175049274,-500.0,0.00016438,2]
[329202099,1718175049286,-500.0,0.00016438,2]
[329202100,1718175049296,-500.0,0.00016438,2]
[329202101,1718175049307,-500.0,0.00016438,2]
[329202102,1718175049317,-500.0,0.00016438,2]
[329202103,1718175049327,-500.0,0.00016438,2]
[329202104,1718175049337,-504.63814823,0.00016438,2]
[329202105,1718175049347,-500.0,0.00016438,2]
[329202106,1718175049357,-500.0,0.00016438,2]
[329202107,1718175049369,-502.06598446,0.00016438,2]
[329202108,1718175049379,-505.79840497,0.00016438,2]
[329202109,1718175049389,-500.0,0.00016438,2]
[329202110,1718175049399,-500.0,0.00016438,2]
[329202111,1718175049414,-520.77763257,0.00016438,2]
[329202112,1718175049425,-500.0,0.00016438,2]
[329202113,1718175049437,-500.0,0.00016438,2]
[329202114,1718175049447,-500.0,0.00016438,2]
[329202115,1718175049457,-500.0,0.00016438,2]
[329202116,1718175049467,-510.70415561,0.00016438,2]
[329202117,1718175049477,-500.0,0.00016438,2]
[329202118,1718175049487,-500.0,0.00016438,2]
[329202119,1718175049497,-500.0,0.00016438,2]
[329202120,1718175049508,-785.84,0.00016438,2]
[329202121,1718175049518,-500.0,0.00016438,2]
[329202122,1718175049527,-500.0,0.00016438,2]
[329202123,1718175049538,-509.96720287,0.00016438,2]
[329202124,1718175049548,-500.0,0.00016438,2]
[329202125,1718175049560,-500.0,0.00016438,2]
[329202126,1718175049570,-1250.67,0.00016438,2]
[329202127,1718175049580,-1250.67,0.00016438,2]
[329202128,1718175049591,-510.50646292,0.00016438,2]
[329202129,1718175049607,-500.0,0.00016438,2]
[329202130,1718175049617,-507.25653652,0.00016438,2]
[329202131,1718175049627,-504.8708622,0.00016438,2]
[329202132,1718175049637,-500.60297449,0.00016438,2]
[329202133,1718175049647,-500.0,0.00016438,2]
[329202134,1718175049658,-500.0,0.00016438,2]
[329202135,1718175049668,-500.0,0.00016438,2]
[329202136,1718175049678,-500.0,0.00016438,2]
[329202137,1718175049688,-502.98836485,0.00016438,2]
[329202138,1718175049699,-500.0,0.00016438,2]
[329202139,1718175049709,-500.0,0.00016438,2]
[329202140,1718175049719,-500.0,0.00016438,2]
[329202141,1718175049729,-500.0,0.00016438,2]
[329202142,1718175049739,-257.06964097,0.00016438,2]
[329202143,1718175049749,-500.0,0.00016438,2]
[329202144,1718175049760,-500.0,0.00016438,2]
[329202145,1718175049770,-1262.57,0.00016438,2]
[329202146,1718175049780,-500.0,0.00016438,2]
[329202147,1718175049790,-500.0,0.00016438,2]
[329202148,1718175049801,-500.0,0.00016438,2]
[329202149,1718175049811,-497.44312298,0.00016438,2]
[329202150,1718175049821,-603.56616681,0.00016438,2]
[329202151,1718175049831,-500.0,0.00016438,2]
[329202152,1718175049841,-500.0,0.00016438,2]
[329202153,1718175049851,-500.0,0.00016438,2]
[329202154,1718175049862,-599.4,0.00016438,2]
[329202155,1718175049873,-500.0,0.00016438,2]
[329202156,1718175049885,-500.0,0.00016438,2]
[329202157,1718175049908,-500.0,0.00016438,2]
[329202158,1718175049919,-500.0,0.00016438,2]
[329202159,1718175049930,-500.0,0.00016438,2]
[329202160,1718175049940,-500.0,0.00016438,2]
[329202161,1718175049951,-500.0,0.00016438,2]
[329202162,1718175049961,-839.04,0.00016438,2]
[329202163,1718175049971,-500.0,0.00016438,2]
[329202164,1718175049982,-275.71709057,0.000165,2]
[329202165,1718175049992,-212.0,0.00016705,2]
[329202166,1718175050001,-500.0,0.0001671,2]
[329202167,1718175050012,-500.0,0.0001671,2]
[329202168,1718175050025,-500.0,0.0001671,2]
[329202169,1718175050046,-500.0,0.00016711,2]
[329202170,1718175050061,-602.18092158,0.00016711,2]
[329202171,1718175050071,-500.0,0.00016711,2]
[329202172,1718175050081,-500.0,0.00016711,2]
[329202173,1718175050091,-501.80753335,0.00016711,2]
[329202174,1718175050102,-511.51904992,0.00016711,2]
[329202175,1718175050112,-500.0,0.00016711,2]
[329202176,1718175050123,-1250.67,0.00016711,2]
[329202177,1718175050133,-500.0,0.00016711,2]
[329202178,1718175050142,-504.66260054,0.00016712,2]
[329202179,1718175050152,-500.0,0.00016712,2]
[329202180,1718175050162,-500.0,0.00016712,2]
[329202181,1718175050172,-500.0,0.00016712,2]
[329202182,1718175050181,-252.97703757,0.00016712,2]
[329202183,1718175050191,-404.57647126,0.00016712,2]
[329202184,1718175050201,-500.0,0.00016712,2]
[329202185,1718175050212,-1804.69,0.00016712,2]
[329202186,1718175050222,-500.0,0.00016712,2]
[329202187,1718175050231,-551.2095067,0.00016712,2]
[329202188,1718175050242,-514.81433297,0.00016712,2]
[329202189,1718175050255,-500.0,0.00016712,2]
[329202190,1718175050265,-500.0,0.00016712,2]
[329202191,1718175050275,-500.0,0.00016712,2]
[329202192,1718175050285,-500.0,0.00016712,4]
[329202193,1718175050297,-521.71453899,0.00016712,2]
[329202194,1718175050307,-500.0,0.00016712,2]
[329202195,1718175050317,-500.0,0.00016712,2]
[329202196,1718175050328,-429.94164619,0.00016712,2]
[329202197,1718175050551,-500.0,0.00016712,2]
[329202198,1718175050562,-500.0,0.00016712,2]
[329202199,1718175050573,-500.0,0.00016712,2]
[329202200,1718175050584,-500.0,0.00016712,2]
[329202201,1718175050595,-503.86776065,0.00016712,2]
[329202202,1718175050605,-500.0,0.00016712,2]
[329202203,1718175050616,-250.0,0.00016712,2]
[329202204,1718175050627,-500.0,0.00016712,2]
[329202205,1718175050638,-588.10580168,0.00016712,2]
[329202206,1718175050648,-500.0,0.00016712,2]
[329202207,1718175050659,-500.0,0.00016712,2]
[329202208,1718175050670,-509.95549602,0.00016712,2]
[329202209,1718175050680,-500.0,0.00016712,2]
[329202210,1718175050691,-500.0,0.00016712,2]
[329202211,1718175050701,-500.0,0.00016712,2]
[329202212,1718175050711,-500.0,0.00016712,2]
[329202213,1718175050721,-500.0,0.00016712,2]
[329202214,1718175050731,-500.0,0.00016712,2]
[329202215,1718175050742,-794.15,0.00016712,2]
[329202216,1718175050752,-500.0,0.00016712,2]
[329202217,1718175050762,-500.0,0.00016712,2]
[329202218,1718175050773,-500.0,0.00016712,2]
[329202219,1718175050783,-500.0,0.00016712,2]
[329202220,1718175050793,-500.0,0.00016712,2]
[329202221,1718175050803,-500.0,0.00016712,2]
[329202222,1718175050813,-500.0,0.00016712,2]
[329202223,1718175050823,-500.0,0.00016712,2]
[329202224,1718175050834,-500.0,0.00016712,2]
[329202225,1718175050844,-500.0,0.00016712,2]
[329202226,1718175050854,-500.0,0.00016712,2]
[329202227,1718175050864,-500.0,0.00016712,2]
[329202228,1718175050875,-500.0,0.00016712,2]
[329202229,1718175050886,-500.0,0.00016712,2]
[329202230,1718175050906,-500.0,0.00016712,2]
[329202231,1718175050916,-500.0,0.00016712,2]
[329202232,1718175050926,-500.0,0.00016712,2]
[329202233,1718175050936,-503.46470665,0.00016712,2]
[329202234,1718175050946,-500.0,0.00016712,2]
[329202235,1718175050956,-500.0,0.00016712,2]
[329202236,1718175050966,-500.0,0.00016712,2]
[329202237,1718175050977,-500.0,0.00016712,2]
[329202238,1718175050987,-500.0,0.00016712,2]
[329202239,1718175050998,-577.72183822,0.00016712,2]
[329202240,1718175051008,-500.0,0.00016712,2]
[329202241,1718175051018,-500.0,0.00016712,2]
[329202242,1718175051028,-500.0,0.00016712,2]
[329202243,1718175051038,-505.38485582,0.00016712,2]
[329202244,1718175051049,-1010.63,0.00016712,2]
[329202245,1718175051059,-522.27,0.00016712,2]
[329202246,1718175051069,-500.0,0.00016712,2]
[329202247,1718175051080,-500.0,0.00016712,2]
[329202248,1718175051090,-500.0,0.00016712,2]
[329202249,1718175051101,-500.0,0.00016712,2]
[329202250,1718175051111,-500.0,0.00016712,2]
[329202251,1718175051123,-500.0,0.00016712,2]
[329202252,1718175051136,-2111.48,0.00016712,2]
[329202253,1718175051146,-503.04525323,0.00016712,2]
[329202254,1718175051158,-6297.57,0.00016712,2]
[329202255,1718175051169,-1308.57,0.00016712,2]
[329202256,1718175051300,-500.0,0.00016712,2]
[329202257,1718175051315,-500.0,0.00016712,2]
[329202258,1718175051326,-1067.37,0.00016712,2]
[329202259,1718175051338,-500.0,0.00016712,2]
[329202260,1718175051348,-500.0,0.00016712,2]
[329202261,1718175051358,-500.0,0.00016712,2]
[329202262,1718175051368,-500.0,0.00016712,2]
[329202263,1718175051379,-500.0,0.00016712,2]
[329202264,1718175051389,-500.0,0.00016712,2]
[329202265,1718175051400,-500.0,0.00016712,2]
[329202266,1718175051410,-5181.01,0.00016712,2]
[329202267,1718175051420,-500.0,0.00016712,2]
[329202268,1718175051430,-500.0,0.00016712,2]
[329202269,1718175051441,-513.50225528,0.00016712,2]
[329202270,1718175051452,-404.35118187,0.00016712,2]
[329202271,1718175051462,-510.89382712,0.00016712,2]
[329202272,1718175051473,-3909.51,0.00016712,2]
[329202273,1718175051483,-500.0,0.00016712,2]
[329202274,1718175051493,-500.0,0.00016712,2]
[329202275,1718175051504,-500.0,0.00016712,2]
[329202276,1718175051514,-500.0,0.00016712,2]
[329202277,1718175051524,-500.0,0.00016712,2]
[329202278,1718175051535,-500.0,0.00016712,2]
[329202279,1718175051546,-364.53588936,0.00016712,2]
[329202280,1718175051556,-500.0,0.00016712,2]
[329202281,1718175051566,-504.93859245,0.00016712,2]
[329202282,1718175051576,-500.0,0.00016712,2]
[329202283,1718175051587,-500.0,0.00016712,2]
[329202284,1718175051597,-500.0,0.00016712,2]
[329202285,1718175051607,-785.84,0.00016712,2]
[329202286,1718175051617,-500.0,0.00016712,2]
[329202287,1718175051628,-500.0,0.00016712,2]
[329202288,1718175051638,-503.31503696,0.00016712,2]
[329202289,1718175051648,-500.0,0.00016712,2]
[329202290,1718175051659,-500.0,0.00016712,2]
[329202291,1718175051670,-1262.57,0.00016712,2]
[329202292,1718175051680,-500.0,0.00016712,2]
[329202293,1718175051691,-500.0,0.00016712,2]
[329202294,1718175051701,-500.0,0.00016712,2]
[329202295,1718175051711,-500.0,0.00016712,2]
[329202296,1718175051722,-500.0,0.00016712,2]
[329202297,1718175051732,-599.4,0.00016712,2]
[329202298,1718175051743,-500.0,0.00016712,2]
[329202299,1718175051753,-500.0,0.00016712,2]
[329202300,1718175051763,-500.0,0.00016712,2]
[329202301,1718175051773,-508.33036826,0.00016712,2]
[329202302,1718175051783,-500.0,0.00016712,2]
[329202303,1718175051793,-500.0,0.00016712,2]
[329202304,1718175051804,-839.04,0.00016712,2]
[329202305,1718175051813,-500.0,0.00016712,2]
[329202306,1718175051824,-2434.0672529,0.00016729,2]
[329202307,1718175051835,-212.0,0.00016845,2]
[329202308,1718175051844,-1250.67,0.00016984,2]
[329202309,1718175051855,-577.38,0.00016985,2]
[329202310,1718175051865,-500.0,0.00016985,2]
[329202311,1718175051875,-500.0,0.00016985,2]
[329202312,1718175051890,-500.0,0.00016985,2]
[329202313,1718175051904,-505.99340678,0.00016985,2]
[329202314,1718175051915,-500.0,0.00016985,2]
[329202315,1718175051925,-500.0,0.00016985,2]
[329202316,1718175051935,-212.0,0.00016985,2]
[329202317,1718175051946,-1804.69,0.00016986,2]
[329202318,1718175051957,-180.37399143,0.00016986,2]
[329202319,1718175051968,-500.0,0.00016986,2]
[329202320,1718175051979,-500.0,0.00016986,2]
[329202321,1718175051989,-500.0,0.00016986,4]
[329202322,1718175051999,-500.0,0.00016986,2]
[329202323,1718175052009,-500.0,0.00016986,2]
[329202324,1718175052019,-500.0,0.00016986,2]
[329202325,1718175052034,-500.0,0.00016986,2]
[329202326,1718175052044,-250.0,0.00016986,2]
[329202327,1718175052054,-280.97830287,0.00016986,2]
[329202328,1718175052064,-500.0,0.00016986,2]
[329202329,1718175052075,-500.0,0.00016986,2]
[329202330,1718175052088,-500.0,0.00016986,2]
[329202331,1718175052098,-506.35328406,0.00016986,2]
[329202332,1718175052108,-500.0,0.00016986,2]
[329202333,1718175052118,-794.15,0.00016986,2]
[329202334,1718175052131,-454.82765048,0.00016986,2]
[329202335,1718175052148,-439.67644935,0.00016986,2]
[329202336,1718175052158,-500.0,0.00016986,2]
[329202337,1718175052168,-500.0,0.00016986,2]
[329202338,1718175052178,-530.5829225,0.00016986,2]
[329202339,1718175052188,-500.0,0.00016986,2]
[329202340,1718175052198,-500.0,0.00016986,2]
[329202341,1718175052208,-350.97767471,0.00016986,2]
[329202342,1718175052218,-500.0,0.00016986,2]
[329202343,1718175052228,-504.82996224,0.00016986,2]
[329202344,1718175052239,-500.0,0.00016986,2]
[329202345,1718175052252,-500.0,0.00016986,2]
[329202346,1718175052263,-500.0,0.00016986,2]
[329202347,1718175052273,-500.0,0.00016986,2]
[329202348,1718175052283,-208.08999013,0.00016986,2]
[329202349,1718175052295,-325.28261187,0.00016986,2]
[329202350,1718175052305,-500.0,0.00016986,2]
[329202351,1718175052315,-500.0,0.00016986,2]
[329202352,1718175052326,-500.0,0.00016986,2]
[329202353,1718175052336,-500.0,0.00016986,2]
[329202354,1718175052346,-500.0,0.00016986,2]
[329202355,1718175052356,-500.0,0.00016986,2]
[329202356,1718175052366,-1010.63,0.00016986,2]
[329202357,1718175052379,-522.27,0.00016986,2]
[329202358,1718175052389,-500.0,0.00016986,2]
[329202359,1718175052400,-500.0,0.00016986,2]
[329202360,1718175052409,-500.0,0.00016986,2]
[329202361,1718175052419,-500.0,0.00016986,2]
[329202362,1718175052430,-500.0,0.00016986,2]
[329202363,1718175052440,-500.0,0.00016986,2]
[329202364,1718175052450,-2111.48,0.00016986,2]
[329202365,1718175052460,-6297.57,0.00016986,2]
[329202366,1718175052470,-1308.57,0.00016986,2]
[329202367,1718175052480,-500.0,0.00016986,2]
[329202368,1718175052491,-500.0,0.00016986,2]
[329202369,1718175052501,-1067.37,0.00016986,2]
[329202370,1718175052511,-500.0,0.00016986,2]
[329202371,1718175052521,-500.0,0.00016986,2]
[329202372,1718175052531,-514.71833834,0.00016986,2]
[329202373,1718175052541,-500.0,0.00016986,2]
[329202374,1718175052551,-500.0,0.00016986,2]
[329202375,1718175052561,-500.0,0.00016986,2]
[329202376,1718175052571,-511.80827517,0.00016986,2]
[329202377,1718175052581,-5181.01,0.00016986,2]